[Event "XVI Memorial Lezcano Montalvo 2024"]
[Site "Gran Canaria"]
[Date "2024.03.30"]
[Round "8.31"]
[White "Cabrera Ramos, Javier"]
[Black "Gonzalez Martinez, Miguel Angel"]
[Result "1/2-1/2"]
[ECO "A45"]
[WhiteElo "1784"]
[BlackElo "2158"]
[Annotator "RC"]
[PlyCount "110"]
[EventDate "2024.03.23"]
[EventType "swiss"]
[EventCountry "ESP"]
[SourceTitle "playchess.com"]
[Source "ChessBase"]
[SourceQuality "1"]
[TimeControl "5400+30"]

1. d4 {[%emt 0:00:04]} Nf6 {[%emt 0:01:02]} 2. Bg5 {[%emt 0:00:06]} Ne4 {[%emt 0:02:02]} 3. h4 {[%emt 0:00:08]} d5 {[%emt 0:01:05]} 4. Nd2 {[%emt 0:00:13]} Qd6 {[%emt 0:03:18]} 5. Nxe4 {[%emt 0:01:14]} dxe4 {[%emt 0:00:01]} 6. Qd2 {[%emt 0:03:04]} Nc6 {[%emt 0:03:55]} 7. O-O-O {[%emt 0:01:23]} Qd5 {[%emt 0:07:17]} 8. Kb1 {[%emt 0:00:55]} Bf5 {[%emt 0:01:27]} 9. f3 {[%emt 0:02:39]} O-O-O {[%emt 0:02:05]} 10. g4 {[%emt 0:00:14]} Be6 {[%emt 0:00:12]} 11. b3 {[%emt 0:01:48]} Qxd4 {[%emt 0:00:54]} 12. Qxd4 {[%emt 0:01:21]} Rxd4 {[%emt 0:00:06]} 13. Rxd4 {[%emt 0:00:48]} Nxd4 {[%emt 0:00:04]} 14. Be3 {[%emt 0:00:08]} Nc6 {[%emt 0:00:54]} 15. Nh3 {[%emt 0:00:49]} f6 {[%emt 0:03:42]} 16. Nf2 {[%emt 0:01:51]} exf3 {[%emt 0:00:31]} 17. exf3 {[%emt 0:00:02]} Bd5 {[%emt 0:05:30]} 18. Rh3 {[%emt 0:00:12]} e5 {[%emt 0:00:49]} 19. Bd3 {[%emt 0:00:42]} Bd6 {[%emt 0:04:25]} 20. Bf5+ {[%emt 0:01:25]} Kb8 {[%emt 0:01:19]} 21. h5 {[%emt 0:00:47]} h6 {[%emt 0:01:45]} 22. c3 {[%emt 0:01:08]} Rd8 {[%emt 0:00:37]} 23. Ne4 {[%emt 0:01:12]} Ne7 {[%emt 0:03:32]} 24. Nxd6 {[%emt 0:00:27]} cxd6 {[%emt 0:01:33]} 25. Bd3 {[%emt 0:00:42]} b6 {[%emt 0:01:00]} 26. Kc2 {[%emt 0:00:55]} Bb7 {[%emt 0:00:30]} 27. Kd2 {[%emt 0:01:05]} Rc8 {[%emt 0:06:06]} 28. c4 {[%emt 0:00:31]} d5 {[%emt 0:00:13]} 29. Ke2 {[%emt 0:00:13]} Rd8 {[%emt 0:04:48]} 30. Rh1 {[%emt 0:07:30]} Nc8 {[%emt 0:02:59]} 31. Rc1 {[%emt 0:02:08]} dxc4 {[%emt 0:01:44]} 32. bxc4 {[%emt 0:00:21]} Bxf3+ {[%emt 0:00:20]} 33. Kxf3 {[%emt 0:00:39]} Rxd3 {[%emt 0:00:03]} 34. Ke4 {[%emt 0:00:12]} Ra3 {[%emt 0:00:40]} 35. c5 {[%emt 0:00:40]} b5 {[%emt 0:00:45]} 36. c6 {[%emt 0:11:06]} Kc7 {[%emt 0:00:44]} 37. Bc5 {[%emt 0:00:16]} Ra4+ {[%emt 0:01:38]} 38. Kf3 {[%emt 0:01:27]} Rxa2 {[%emt 0:03:23]} 39. Bf8 {[%emt 0:00:21]} a5 {[%emt 0:00:54]} 40. Bxg7 {[%emt 0:00:08]} Nd6 {[%emt 0:03:23]} 41. Bxf6 {[%emt 0:02:36]} Nf7 {[%emt 0:00:35]} 42. Ke4 {[%emt 0:02:27]} b4 {[%emt 0:00:57]} 43. Kf5 {[%emt 0:00:02]} b3 {[%emt 0:06:56]} 44. Kg6 {[%emt 0:01:21]} Rc2 {[%emt 0:12:19]} 45. Rb1 {[%emt 0:02:09]} a4 {[%emt 0:00:36]} 46. Kxf7 {[%emt 0:00:18]} Kd6 {[%emt 0:02:12]} 47. g5 {[%emt 0:05:34]} hxg5 {[%emt 0:02:02]} 48. Rd1+ {[%emt 0:03:46]} Kxc6 {[%emt 0:00:51]} 49. Bxe5 {[%emt 0:00:08]} b2 {[%emt 0:04:50]} 50. Rb1 {[%emt 0:00:29]} a3 {[%emt 0:00:07]} 51. h6 {[%emt 0:00:02]} Rf2+ {[%emt 0:02:31]} 52. Kg7 {[%emt 0:00:08]} a2 {[%emt 0:02:04]} 53. Rxb2 {[%emt 0:00:06]} a1=Q {[%emt 0:00:16]} 54. Rb6+ {[%emt 0:01:32]} Kxb6 {[%emt 0:00:02]} 55. Bxa1 {[%emt 0:00:09]} Kc5 {[%emt 0:04:27]} 1/2-1/2

[Event "XVI Memorial Lezcano Montalvo 2024"]
[Site "Gran Canaria"]
[Date "2024.03.30"]
[Round "8.32"]
[White "Blanco Garcia Bajo, David"]
[Black "Perez Betancor, Jose Luis"]
[Result "1-0"]
[ECO "B00"]
[WhiteElo "2004"]
[BlackElo "1765"]
[Annotator "NA RC"]
[PlyCount "39"]
[EventDate "2024.03.23"]
[EventType "swiss"]
[EventCountry "ESP"]
[SourceTitle "playchess.com"]
[Source "ChessBase"]
[SourceQuality "1"]
[TimeControl "5400+30"]

1. e4 {[%emt 0:00:03]} b6 {[%emt 0:00:08]} 2. d4 {[%emt 0:00:05]} Bb7 {[%emt 0:00:07]} 3. Bd3 {[%emt 0:00:06]} e6 {[%emt 0:00:14]} 4. Nf3 {[%emt 0:00:42]} c5 {[%emt 0:00:11]} 5. c3 {[%emt 0:05:54]} Nf6 {[%emt 0:00:12]} 6. Qe2 {[%emt 0:01:57]} d5 {[%emt 0:01:42]} 7. e5 {[%emt 0:04:52]} Nfd7 {[%emt 0:00:10]} 8. Na3 {[%emt 0:12:55]} c4 {[%emt 0:00:48]} 9. Bb1 {[%emt 0:01:33]} a6 {[%emt 0:01:22]} 10. Ng5 {[%emt 0:03:24]} Be7 {[%emt 0:05:48]} 11. h4 {[%emt 0:02:32]} Nc6 {[%emt 0:02:35]} 12. Bxh7 {[%emt 0:07:28]} Nf8 {[%emt 0:08:30]} 13. Bb1 {[%emt 0:17:23]} Qd7 {[%emt 0:04:23]} 14. Qg4 {[%emt 0:03:42]} Bxa3 {[%emt 0:10:03]} 15. bxa3 {[%emt 0:00:23]} O-O-O {[%emt 0:00:11]} 16. Qf3 {[%emt 0:01:55]} Ng6 {[%emt 0:18:37]} 17. Qxf7 {[%emt 0:07:17]} Nxh4 {[%emt 0:02:13]} 18. Kf1 {[%emt 0:00:19]} Nxe5 {[%emt 0:09:06]} 19. Qxd7+ {[%emt 0:06:23]} Nxd7 {[%emt 0:00:09]} 20. Nf7 {[%emt 0:00:48]} 1-0

[Event "XVI Memorial Lezcano Montalvo 2024"]
[Site "Gran Canaria"]
[Date "2024.03.30"]
[Round "8.33"]
[White "Ascension Suarez, Joel"]
[Black "Arnaiz Yanes, Miguel Angel"]
[Result "0-1"]
[ECO "D35"]
[WhiteElo "1731"]
[BlackElo "1947"]
[Annotator "NA RC"]
[PlyCount "76"]
[EventDate "2024.03.23"]
[EventType "swiss"]
[EventCountry "ESP"]
[SourceTitle "playchess.com"]
[Source "ChessBase"]
[SourceQuality "1"]
[TimeControl "5400+30"]

1. d4 {[%emt 0:00:21]} Nf6 {[%emt 0:00:09]} 2. Nf3 {[%emt 0:00:17]} d5 {[%emt 0:00:13]} 3. g3 {[%emt 0:00:04]} e6 {[%emt 0:01:08]} 4. c4 {[%emt 0:00:14]} c6 {[%emt 0:00:06]} 5. Bg2 {[%emt 0:00:14]} Bd6 {[%emt 0:00:18]} 6. cxd5 {[%emt 0:00:13]} exd5 {[%emt 0:00:24]} 7. Nc3 {[%emt 0:00:14]} O-O {[%emt 0:00:15]} 8. O-O {[%emt 0:00:06]} Re8 {[%emt 0:00:28]} 9. h3 {[%emt 0:03:13]} Na6 {[%emt 0:02:35]} 10. a3 {[%emt 0:00:56]} Nc7 {[%emt 0:01:11]} 11. Re1 {[%emt 0:01:39]} h6 {[%emt 0:00:45]} 12. Qc2 {[%emt 0:04:19]} Be6 {[%emt 0:03:59]} 13. Be3 {[%emt 0:02:29]} Qd7 {[%emt 0:00:29]} 14. Kh2 {[%emt 0:00:44]} Bf5 {[%emt 0:00:41]} 15. Qd2 {[%emt 0:01:48]} Re7 {[%emt 0:11:11]} 16. Bf4 {[%emt 0:13:55]} Rae8 {[%emt 0:03:22]} 17. Ne5 {[%emt 0:03:35]} Bxe5 {[%emt 0:05:04]} 18. Bxe5 {[%emt 0:00:21]} Nh7 {[%emt 0:03:22]} 19. e4 {[%emt 0:11:39]} dxe4 {[%emt 0:01:19]} 20. Nxe4 {[%emt 0:03:28]} Rxe5 {[%emt 0:00:58]} 21. dxe5 {[%emt 0:00:13]} Qe7 {[%emt 0:03:55]} 22. Nd6 {[%emt 0:00:34]} Qd7 {[%emt 0:01:07]} 23. Qf4 {[%emt 0:01:50]} Bg6 {[%emt 0:03:52]} 24. Nxe8 {[%emt 0:00:07]} Qxe8 {[%emt 0:00:13]} 25. Qb4 {[%emt 0:01:15]} Qc8 {[%emt 0:00:26]} 26. Rad1 {[%emt 0:01:20]} Ng5 {[%emt 0:00:15]} 27. f4 {[%emt 0:03:23]} Nge6 {[%emt 0:00:24]} 28. g4 {[%emt 0:00:25]} Na6 {[%emt 0:01:42]} 29. Qe7 {[%emt 0:02:11]} Bc2 {[%emt 0:02:07]} 30. Rd2 {[%emt 0:00:24]} Bb3 {[%emt 0:02:42]} 31. f5 {[%emt 0:00:14]} Qc7 {[%emt 0:00:55]} 32. fxe6 {[%emt 0:00:11]} Qxe7 {[%emt 0:00:12]} 33. exf7+ {[%emt 0:00:27]} Bxf7 {[%emt 0:00:15]} 34. e6 {[%emt 0:00:36]} Bxe6 {[%emt 0:02:44]} 35. Rde2 {[%emt 0:00:25]} Qc7+ {[%emt 0:00:03]} 36. Kg1 {[%emt 0:00:16]} Bd5 {[%emt 0:00:21]} 37. Re8+ {[%emt 0:00:18]} Kh7 {[%emt 0:00:12]} 38. Bf1 {[%emt 0:00:15]} Qg3+ {[%emt 0:00:14]} 0-1

[Event "XVI Memorial Lezcano Montalvo 2024"]
[Site "Gran Canaria"]
[Date "2024.03.30"]
[Round "8.34"]
[White "Mesa Rodriguez, Antonio"]
[Black "Sanchez Gonzalez, Diego"]
[Result "1-0"]
[ECO "B99"]
[WhiteElo "1697"]
[BlackElo "1908"]
[Annotator "TA"]
[PlyCount "49"]
[EventDate "2024.03.23"]
[EventType "swiss"]
[EventCountry "ESP"]
[SourceTitle "playchess.com"]
[Source "ChessBase"]
[SourceQuality "1"]
[TimeControl "5400+30"]

{[%evp 24,48,12,30,5,20,22,26,24,22,37,43,40,39,49,0,0,0,50,43,54,10,25,8,95,62,29999]} 1. e4 {[%emt 0:00:01]} c5 {[%emt 0:01:14]} 2. Nf3 {[%emt 0:00:05]} d6 {[%emt 0:00:07]} 3. d4 {[%emt 0:00:05]} cxd4 {[%emt 0:00:05]} 4. Nxd4 {[%emt 0:00:06]} Nf6 {[%emt 0:00:10]} 5. Nc3 {[%emt 0:00:06]} a6 {[%emt 0:00:05]} 6. Bg5 {[%emt 0:00:31]} e6 {[%emt 0:00:07]} 7. f4 {[%emt 0:00:57]} Be7 {[%emt 0:00:36]} 8. Qf3 {[%emt 0:00:37]} Qc7 {[%emt 0:00:26]} 9. O-O-O {[%emt 0:01:55]} Nbd7 {[%emt 0:00:17]} 10. g4 {[%emt 0:02:07][%cal Bg2g4,Bg4g5][%mdl 32]} b5 {[%emt 0:00:41][%cal Bb7b5,Bb5b4][%mdl 32]} 11. Bxf6 {[%emt 0:04:07]} Nxf6 {[%emt 0:00:11]} 12. g5 {[%emt 0:00:55]} Nd7 {[%emt 0:00:05]} 13. f5 {[%emt 0:12:25][%cal Bf4f5,Bf5f6][%mdl 32]} O-O {[%emt 0:01:13] [#] ...b4 would now be deadly.} 14. Rg1 {[%emt 0:00:50] And now f6 would win.} b4 $1 {[%emt 0:29:21]} 15. Nce2 {[%emt 0:22:13][%cal Bc3e2,Be2d4,Bd4f5][%mdl 32] Hoping for f6.} e5 $1 {[%emt 0:03:20] White has an edge.} 16. f6 $1 {[%emt 0:00:38]} exd4 {[%emt 0:00:10]} 17. fxe7 {[%emt 0:00:09]} Re8 {[%emt 0:00:08]} 18. Nxd4 {[%emt 0:16:11]} Ne5 {[%emt 0:00:22]} 19. Qg3 {[%emt 0:04:53]} (19. Qf4 $14) 19... Bb7 $11 {[%emt 0:02:16]} 20. Bg2 {[%emt 0:04:24]} ({Reject} 20. Nf5 Bxe4 21. Qf2 (21. Nh6+ $2 gxh6 22. gxh6+ Ng6 $19) 21... Bxf5 22. Qxf5 Rxe7 $15 (22... Qxe7 23. Kb1 $15)) 20... Rxe7 {[%emt 0:10:51]} (20... g6 $11) 21. Nf5 $40 {[%emt 0:03:01][%csl LRd6,LRe7][%mdl 128] Black needs to defend precisely.} Rd7 {[%emt 0:02:28]} 22. Rd2 {[%emt 0:00:56]} Qc5 {[%emt 0:04:36]} 23. Qe3 {[%emt 0:01:55]} Qc7 {[%emt 0:19:00]} (23... g6 $11 24. Rgd1 gxf5 (24... Rad8 25. Nh6+ Kf8 26. Qf4 $14) 25. Qxc5 dxc5 26. Rxd7 Nxd7 27. Rxd7 Bxe4 28. Bxe4 fxe4) 24. Qd4 {[%emt 0:00:31][%csl LRb4,LRd6] White is more active.} Nc4 $2 {[%emt 0:01:03][%mdl 8192] [#]} (24... Qc5 $14) 25. Qxg7# {[%emt 0:00:43] Weighted Error Value: White=0.16 (very precise) /Black=0.53.  Loses game:     	---       	Black=1      Mistake:       	White=1     	Black=2      Inaccurate:     	White=2     	---        OK:         	White=3     	Black=3      Best:        	White=4     	Black=1      Strong:       	White=1     	Black=2} 1-0

[Event "XVI Memorial Lezcano Montalvo 2024"]
[Site "Gran Canaria"]
[Date "2024.03.30"]
[Round "8.35"]
[White "Quiceno Ramirez, Edwin Alejandro"]
[Black "Julien Casteleiro, Ariel"]
[Result "1-0"]
[ECO "D15"]
[WhiteElo "1888"]
[BlackElo "1739"]
[Annotator "NA RC COMBH"]
[PlyCount "93"]
[EventDate "2024.03.23"]
[EventType "swiss"]
[EventCountry "ESP"]
[SourceTitle "playchess.com"]
[Source "ChessBase"]
[SourceQuality "1"]
[TimeControl "5400+30"]

1. d4 {[%emt 0:00:04]} d5 {[%emt 0:01:11]} 2. c4 {[%emt 0:00:07]} c6 {[%emt 0:00:35]} 3. Nf3 {[%emt 0:00:05]} Nf6 {[%emt 0:00:17]} 4. Nc3 {[%emt 0:00:02]} a6 {[%emt 0:02:31]} 5. a4 {[%emt 0:00:26]} e6 {[%emt 0:03:22]} 6. Qb3 {[%emt 0:02:14]} Be7 {[%emt 0:01:27]} 7. h3 {[%emt 0:00:13]} O-O {[%emt 0:00:32]} 8. Bf4 {[%emt 0:00:10]} a5 {[%emt 0:01:00]} 9. e3 {[%emt 0:00:40]} Na6 {[%emt 0:03:51]} 10. c5 {[%emt 0:02:22]} Re8 {[%emt 0:04:01]} 11. Be2 {[%emt 0:02:07]} Nd7 {[%emt 0:00:55]} 12. O-O {[%emt 0:01:06]} Bf6 {[%emt 0:00:53]} 13. Bxa6 {[%emt 0:02:10]} Rxa6 {[%emt 0:01:08]} 14. e4 {[%emt 0:00:22]} g6 {[%emt 0:00:41]} 15. exd5 {[%emt 0:01:05]} exd5 {[%emt 0:02:08]} 16. Rfe1 {[%emt 0:00:16]} b6 {[%emt 0:02:58]} 17. Rxe8+ {[%emt 0:01:34]} Qxe8 {[%emt 0:00:14]} 18. Re1 {[%emt 0:00:05]} Qd8 {[%emt 0:01:40]} 19. Bd6 {[%emt 0:06:58]} Nf8 {[%emt 0:05:10]} 20. Ne5 {[%emt 0:05:46]} Bb7 {[%emt 0:07:07]} 21. Re3 {[%emt 0:04:34]} Ne6 {[%emt 0:01:59]} 22. Ne2 {[%emt 0:00:26]} Ba8 {[%emt 0:07:41]} 23. Qd3 {[%emt 0:07:17]} Ra7 {[%emt 0:01:42]} 24. Ng4 {[%emt 0:02:43]} Bg7 {[%emt 0:00:53]} 25. cxb6 {[%emt 0:02:13]} Qxb6 {[%emt 0:07:09]} 26. Rxe6 {[%emt 0:00:09]} fxe6 {[%emt 0:03:50]} 27. Bc5 {[%emt 0:00:27]} Qa6 {[%emt 0:02:33]} 28. Qe3 {[%emt 0:01:03]} Kf7 {[%emt 0:15:45]} 29. Bxa7 {[%emt 0:00:18]} Qxa7 {[%emt 0:00:47]} 30. Nf4 {[%emt 0:02:10]} Qe7 {[%emt 0:03:18]} 31. Nd3 {[%emt 0:01:09]} Bb7 {[%emt 0:01:45]} 32. Nc5 {[%emt 0:01:58]} Bc8 {[%emt 0:00:27]} 33. Ne5+ {[%emt 0:01:22]} Bxe5 {[%emt 0:00:47]} 34. Qxe5 {[%emt 0:53:49]} Kg8 {[%emt 0:08:45]} 35. g4 {[%emt 0:00:00]} h6 {[%emt 0:01:50]} 36. Kg2 {[%emt 0:00:00]} Bd7 {[%emt 0:01:57]} 37. Qc7 {[%emt 0:00:00]} e5 {[%emt 0:02:41]} 38. Qxd7 {[%emt 0:00:00]} Qxd7 {[%emt 0:00:30]} 39. Nxd7 {[%emt 0:00:00]} exd4 {[%emt 0:01:00]} 40. f4 {[%emt 0:00:00]} Kf7 {[%emt 0:01:48]} 41. Ne5+ {[%emt 0:00:00]} Ke6 {[%emt 0:00:07]} 42. Nxc6 {[%emt 0:00:00]} d3 {[%emt 0:00:48]} 43. Kf3 {[%emt 0:00:00]} Kd6 {[%emt 0:00:43]} 44. Nxa5 {[%emt 0:00:00]} Kc5 {[%emt 0:00:52]} 45. Ke3 {[%emt 0:00:00]} Kb4 {[%emt 0:00:24]} 46. Kxd3 {[%emt 0:00:00]} Kxa5 {[%emt 0:00:41]} 47. f5 {[%emt 0:00:00]} 1-0

[Event "XVI Memorial Lezcano Montalvo 2024"]
[Site "Gran Canaria"]
[Date "2024.03.30"]
[Round "8.36"]
[White "Broeder, Hans-Gert"]
[Black "Delgado Armas, Francisco David"]
[Result "1-0"]
[ECO "B22"]
[WhiteElo "1860"]
[BlackElo "1726"]
[Annotator "NA RC COMBH"]
[PlyCount "83"]
[EventDate "2024.03.23"]
[EventType "swiss"]
[EventCountry "ESP"]
[SourceTitle "playchess.com"]
[Source "ChessBase"]
[SourceQuality "1"]
[TimeControl "5400+30"]

1. e4 {[%emt 0:00:01]} c5 {[%emt 0:00:14]} 2. c3 {[%emt 0:00:06]} e5 {[%emt 0:02:52]} 3. Nf3 {[%emt 0:02:36]} Nc6 {[%emt 0:01:36]} 4. Bc4 {[%emt 0:00:12]} Qf6 {[%emt 0:01:37]} 5. d3 {[%emt 0:02:56]} h6 {[%emt 0:01:51]} 6. a4 {[%emt 0:05:59]} a5 {[%emt 0:01:58]} 7. Na3 {[%emt 0:00:40]} Bd6 {[%emt 0:03:35]} 8. Be3 {[%emt 0:00:54]} b6 {[%emt 0:01:10]} 9. Qb3 {[%emt 0:01:47]} Nge7 {[%emt 0:05:32]} 10. Nb5 {[%emt 0:00:55]} Bb8 {[%emt 0:02:19]} 11. O-O-O {[%emt 0:06:39]} O-O {[%emt 0:03:07]} 12. Kb1 {[%emt 0:07:04]} d6 {[%emt 0:06:46]} 13. Nd2 {[%emt 0:02:10]} Rd8 {[%emt 0:06:13]} 14. Rdf1 {[%emt 0:05:19]} Be6 {[%emt 0:04:52]} 15. f4 {[%emt 0:00:25]} Bxc4 {[%emt 0:00:33]} 16. Nxc4 {[%emt 0:00:17]} exf4 {[%emt 0:05:09]} 17. Nxb6 {[%emt 0:07:29]} Ra6 {[%emt 0:00:00]} 18. Rxf4 {[%emt 0:01:32]} Qe6 {[%emt 0:00:43]} 19. Nd5 {[%emt 0:02:45]} Nxd5 {[%emt 0:06:58]} 20. Qxd5 {[%emt 0:04:34]} Qxd5 {[%emt 0:02:18]} 21. exd5 {[%emt 0:00:02]} Re8 {[%emt 0:02:20]} 22. dxc6 {[%emt 0:01:26]} Rxc6 {[%emt 0:09:10]} 23. Re4 {[%emt 0:00:58]} Rec8 {[%emt 0:03:15]} 24. c4 {[%emt 0:45:44]} Rd8 {[%emt 0:02:44]} 25. Nc3 {[%emt 0:00:00]} Bc7 {[%emt 0:00:30]} 26. Nd5 {[%emt 0:00:00]} Rd7 {[%emt 0:01:54]} 27. Ne7+ {[%emt 0:00:00]} Rxe7 {[%emt 0:00:26]} 28. Rxe7 {[%emt 0:00:00]} Bb6 {[%emt 0:00:15]} 29. Rf1 {[%emt 0:00:00]} f6 {[%emt 0:00:55]} 30. Rb7 {[%emt 0:00:00]} Kh7 {[%emt 0:00:49]} 31. Bf4 {[%emt 0:00:00]} Kg6 {[%emt 0:03:21]} 32. g4 {[%emt 0:00:00]} Bd8 {[%emt 0:05:12]} 33. Rd7 {[%emt 0:00:00]} Bc7 {[%emt 0:01:49]} 34. Re1 {[%emt 0:00:00]} Bb8 {[%emt 0:01:26]} 35. Rb7 {[%emt 0:00:00]} Rc8 {[%emt 0:00:56]} 36. Ree7 {[%emt 0:00:00]} Rg8 {[%emt 0:01:19]} 37. Bd2 {[%emt 0:00:00]} f5 {[%emt 0:01:03]} 38. gxf5+ {[%emt 0:00:00]} Kxf5 {[%emt 0:00:40]} 39. Rxg7 {[%emt 0:00:00]} Re8 {[%emt 0:01:46]} 40. Rbf7+ {[%emt 0:00:00]} Ke6 {[%emt 0:00:45]} 41. Bc3 {[%emt 0:00:00]} d5 {[%emt 0:00:31]} 42. Rf6# {[%emt 0:00:00]} 1-0

[Event "XVI Memorial Lezcano Montalvo 2024"]
[Site "Gran Canaria"]
[Date "2024.03.30"]
[Round "8.37"]
[White "Leandro Tejera, Damian"]
[Black "Garcia Rodriguez, Adriana"]
[Result "0-1"]
[ECO "D05"]
[WhiteElo "1483"]
[BlackElo "1854"]
[Annotator "NA RC COMBH"]
[PlyCount "122"]
[EventDate "2024.03.23"]
[EventType "swiss"]
[EventCountry "ESP"]
[SourceTitle "playchess.com"]
[Source "ChessBase"]
[SourceQuality "1"]
[TimeControl "5400+30"]

1. d4 {[%emt 0:00:09]} d5 {[%emt 0:00:33]} 2. Nf3 {[%emt 0:00:19]} Nf6 {[%emt 0:00:00]} 3. e3 {[%emt 0:00:33]} e6 {[%emt 0:00:00]} 4. Bd3 {[%emt 0:00:15]} c5 {[%emt 0:00:00]} 5. b3 {[%emt 0:00:08]} Nc6 {[%emt 0:00:15]} 6. Bb2 {[%emt 0:00:25]} cxd4 {[%emt 0:00:10]} 7. exd4 {[%emt 0:00:18]} Be7 {[%emt 0:00:16]} 8. O-O {[%emt 0:00:34]} O-O {[%emt 0:00:04]} 9. Ne5 {[%emt 0:00:04]} Nb4 {[%emt 0:00:51]} 10. Be2 {[%emt 0:00:33]} Qc7 {[%emt 0:00:56]} 11. Nc3 {[%emt 0:01:31]} a6 {[%emt 0:00:26]} 12. a3 {[%emt 0:01:04]} Nc6 {[%emt 0:00:06]} 13. f4 {[%emt 0:00:12]} Nxd4 {[%emt 0:01:55]} 14. Nxd5 {[%emt 0:04:06]} Nxe2+ {[%emt 0:00:38]} 15. Qxe2 {[%emt 0:00:20]} Nxd5 {[%emt 0:00:16]} 16. Rac1 {[%emt 0:01:44]} Bf6 {[%emt 0:00:59]} 17. c4 {[%emt 0:00:48]} Ne7 {[%emt 0:00:55]} 18. Kh1 {[%emt 0:02:14]} Nc6 {[%emt 0:01:15]} 19. Ng4 {[%emt 0:02:56]} Bxb2 {[%emt 0:00:38]} 20. Qxb2 {[%emt 0:00:10]} f6 {[%emt 0:00:09]} 21. Ne3 {[%emt 0:02:34]} Bd7 {[%emt 0:02:30]} 22. b4 {[%emt 0:03:50]} Ne7 {[%emt 0:01:18]} 23. c5 {[%emt 0:00:57]} Ng6 {[%emt 0:00:56]} 24. f5 {[%emt 0:06:18]} exf5 {[%emt 0:04:45]} 25. Qb3+ {[%emt 0:00:45]} Kh8 {[%emt 0:00:00]} 26. Nxf5 {[%emt 0:00:41]} Bxf5 {[%emt 0:00:10]} 27. Rxf5 {[%emt 0:02:14]} Qd7 {[%emt 0:00:18]} 28. Rff1 {[%emt 0:00:15]} Rad8 {[%emt 0:00:33]} 29. h3 {[%emt 0:00:33]} Qd5 {[%emt 0:01:11]} 30. Qxd5 {[%emt 0:01:14]} Rxd5 {[%emt 0:00:00]} 31. Rf3 {[%emt 0:00:38]} Ne5 {[%emt 0:00:00]} 32. Re3 {[%emt 0:00:42]} Rfd8 {[%emt 0:00:00]} 33. Kg1 {[%emt 0:01:36]} Rd1+ {[%emt 0:00:43]} 34. Rxd1 {[%emt 0:00:07]} Rxd1+ {[%emt 0:00:02]} 35. Kf2 {[%emt 0:00:17]} Kg8 {[%emt 0:00:03]} 36. b5 {[%emt 0:02:26]} axb5 {[%emt 0:02:54]} 37. Rb3 {[%emt 0:00:08]} Nd3+ {[%emt 0:00:07]} 38. Ke2 {[%emt 0:02:25]} Nc1+ {[%emt 0:00:14]} 39. Kxd1 {[%emt 0:00:20]} Nxb3 {[%emt 0:00:06]} 40. Kc2 {[%emt 0:00:08]} Nxc5 {[%emt 0:00:04]} 41. Kc3 {[%emt 0:00:11]} Na6 {[%emt 0:00:14]} 42. Kd4 {[%emt 0:00:05]} Kf7 {[%emt 0:00:07]} 43. Kd5 {[%emt 0:01:33]} Ke7 {[%emt 0:00:11]} 44. g4 {[%emt 0:00:16]} Kd7 {[%emt 0:00:09]} 45. h4 {[%emt 0:00:09]} b4 {[%emt 0:00:12]} 46. axb4 {[%emt 0:00:19]} Nxb4+ {[%emt 0:00:04]} 47. Kc4 {[%emt 0:00:06]} Nc6 {[%emt 0:00:02]} 48. h5 {[%emt 0:02:56]} Ne5+ {[%emt 0:00:03]} 49. Kb5 {[%emt 0:00:14]} Nxg4 {[%emt 0:00:03]} 50. h6 {[%emt 0:00:17]} g5 {[%emt 0:00:04]} 51. Kb6 {[%emt 0:00:09]} f5 {[%emt 0:00:07]} 52. Kb5 {[%emt 0:00:08]} f4 {[%emt 0:00:14]} 53. Kb6 {[%emt 0:00:32]} f3 {[%emt 0:00:05]} 54. Kb5 {[%emt 0:00:10]} f2 {[%emt 0:00:05]} 55. Kb6 {[%emt 0:00:10]} f1=Q {[%emt 0:00:08]} 56. Ka7 {[%emt 0:00:31]} Qa6+ {[%emt 0:00:04]} 57. Kb8 {[%emt 0:00:21]} Ke7 {[%emt 0:00:11]} 58. Kc8 {[%emt 0:00:11]} Qc6+ {[%emt 0:00:40]} 59. Kb8 {[%emt 0:00:10]} Kd7 {[%emt 0:00:03]} 60. Ka7 {[%emt 0:00:12]} Kc7 {[%emt 0:00:07]} 61. Ka8 {[%emt 0:00:41]} Qa6# {[%emt 0:00:01]} 0-1

[Event "XVI Memorial Lezcano Montalvo 2024"]
[Site "Gran Canaria"]
[Date "2024.03.30"]
[Round "8.39"]
[White "Sanchez Arencibia, Heriberto"]
[Black "Ramirez Maillo, Juan Adonay"]
[Result "0-1"]
[ECO "A48"]
[WhiteElo "1636"]
[BlackElo "1918"]
[Annotator "NA RC"]
[PlyCount "42"]
[EventDate "2024.03.23"]
[EventType "swiss"]
[EventCountry "ESP"]
[SourceTitle "playchess.com"]
[Source "ChessBase"]
[SourceQuality "1"]
[TimeControl "5400+30"]

1. d4 {[%emt 0:00:03]} Nf6 {[%emt 0:00:08]} 2. Nf3 {[%emt 0:00:05]} g6 {[%emt 0:00:23]} 3. Bf4 {[%emt 0:00:09]} Bg7 {[%emt 0:00:09]} 4. e3 {[%emt 0:00:05]} d6 {[%emt 0:00:04]} 5. h3 {[%emt 0:00:12]} O-O {[%emt 0:00:08]} 6. Be2 {[%emt 0:00:04]} Nbd7 {[%emt 0:00:36]} 7. O-O {[%emt 0:00:07]} Re8 {[%emt 0:01:06]} 8. c4 {[%emt 0:00:56]} Nh5 {[%emt 0:02:12]} 9. Bh2 {[%emt 0:00:38]} e5 {[%emt 0:02:18]} 10. Nc3 {[%emt 0:01:31]} e4 {[%emt 0:02:45]} 11. Nd2 {[%emt 0:00:37]} Nhf6 {[%emt 0:00:07]} 12. c5 {[%emt 0:04:13]} dxc5 {[%emt 0:02:14]} 13. Nb5 {[%emt 0:00:21]} Nd5 {[%emt 0:04:45]} 14. Qb3 {[%emt 0:01:54]} N7f6 {[%emt 0:05:48]} 15. Rac1 {[%emt 0:03:40]} a6 {[%emt 0:03:37]} 16. Rxc5 {[%emt 0:09:46]} axb5 {[%emt 0:00:48]} 17. Bxb5 {[%emt 0:00:07]} c6 {[%emt 0:00:29]} 18. Bc4 {[%emt 0:01:35]} Bf8 {[%emt 0:00:53]} 19. Bxd5 {[%emt 0:00:51]} Nxd5 {[%emt 0:00:28]} 20. Rc2 {[%emt 0:02:05]} Nb4 {[%emt 0:01:38]} 21. Rc3 {[%emt 0:03:57]} Be6 {[%emt 0:01:16]} 0-1